bitfinex-derivatives/quotes_BTCF0:USTF0_20241015
["timestamp","ask_amount","ask_price","bid_price","bid_amount"]
[1728958183056,2.09826493,65788.0,65787.0,0.0014]
[1728958184152,2.06102768,65788.0,65787.0,0.0014]
[1728958184350,2.09826675,65788.0,65787.0,0.0014]
[1728958184552,2.09826667,65788.0,65787.0,0.0014]
[1728958185453,2.00648736,65788.0,65787.0,0.0014]
[1728958186756,2.18648736,65788.0,65787.0,0.0014]
[1728958189862,2.139813,65788.0,65787.0,0.06213179]
[1728958190069,1.523,65788.0,65787.0,0.0014]
[1728958190653,1.523,65788.0,65787.0,0.19318741]
[1728958190965,1.523,65788.0,65787.0,0.11727313]
[1728958192566,1.523,65788.0,65787.0,0.193155]
[1728958192767,1.523,65788.0,65787.0,0.11727313]
[1728958193064,1.523,65788.0,65787.0,0.07728147]
[1728958193453,1.523,65788.0,65787.0,0.0014]
[1728958193863,1.523,65788.0,65787.0,0.07728147]
[1728958194361,1.523,65788.0,65787.0,0.0014]
[1728958194967,1.523,65788.0,65787.0,0.07728147]
[1728958195963,1.523,65788.0,65787.0,0.0014]
[1728958198368,1.523,65788.0,65787.0,0.06209935]
[1728958200065,1.523,65788.0,65787.0,0.0014]
[1728958203171,1.703,65788.0,65787.0,0.0014]
[1728958203373,1.523,65788.0,65787.0,0.0014]
[1728958204669,1.643,65788.0,65787.0,0.0014]
[1728958205067,1.68023598,65788.0,65787.0,0.0014]
[1728958207074,1.56023598,65788.0,65787.0,0.0014]
[1728958210476,1.643,65788.0,65787.0,0.0014]
[1728958211182,1.523,65788.0,65787.0,0.0014]
[1728958211880,0.023,65788.0,65787.0,0.0014]
[1728958212077,0.023,65788.0,65787.0,0.11727385]
[1728958212675,1.50092,65789.0,65787.0,0.11727385]
[1728958212676,0.00092,65789.0,65787.0,0.55408685]
[1728958212870,0.09839821,65795.0,65788.0,0.11587385]
[1728958213067,1.5,65794.0,65793.0,0.07595754]
[1728958213468,1.62,65794.0,65793.0,0.07595754]
[1728958213679,1.62,65794.0,65790.0,0.07595754]
[1728958213982,1.62,65794.0,65788.0,0.0004]
[1728958213983,0.012,65789.0,65788.0,0.0004]
[1728958214181,0.012,65789.0,65788.0,0.1162723]
[1728958214877,1.512,65789.0,65788.0,0.1162723]
[1728958215187,1.519,65789.0,65788.0,0.1162723]
[1728958215368,1.519,65789.0,65788.0,0.11627629]
[1728958215679,1.5,65789.0,65788.0,0.11627629]
[1728958215982,1.507,65789.0,65788.0,0.11727629]
[1728958216577,1.512,65789.0,65788.0,0.11827629]
[1728958218080,0.012,65789.0,65788.0,0.11827629]
[1728958220275,0.012,65789.0,65788.0,0.11827644]
[1728958221192,1.512,65789.0,65788.0,0.11827644]
[1728958224883,1.512,65789.0,65788.0,0.11827645]
[1728958225087,0.012,65789.0,65788.0,0.11827645]
[1728958225279,0.012,65789.0,65788.0,0.25931227]
[1728958226983,0.012,65789.0,65788.0,0.0024]
[1728958227180,0.04923349,65789.0,65788.0,0.0024]
[1728958227793,0.04923349,65789.0,65788.0,0.02470158]
[1728958228082,0.04923349,65789.0,65788.0,0.3632]
[1728958228387,0.012,65789.0,65788.0,0.3632]
[1728958229890,0.0492324,65789.0,65788.0,0.3632]
[1728958232788,0.012,65789.0,65788.0,0.3632]
[1728958233695,0.012,65789.0,65788.0,1.4192]
[1728958234000,0.04923131,65789.0,65788.0,1.4192]
[1728958234594,0.04923115,65789.0,65788.0,1.4192]
[1728958235101,1.5,65796.0,65788.0,1.67608332]
[1728958235399,1.5,65796.0,65795.0,0.0004]
[1728958235603,1.5,65796.0,65795.0,0.1162609]
[1728958236398,1.5,65796.0,65795.0,0.1172609]
[1728958236399,1.512,65796.0,65795.0,0.1172609]
[1728958236592,1.519,65796.0,65795.0,0.1172609]
[1728958237903,1.517,65796.0,65795.0,0.1182609]
[1728958240399,1.517,65796.0,65795.0,0.2382609]
[1728958240602,0.079493,65805.0,65797.0,0.076001]
[1728958240806,0.075993,65805.0,65804.0,0.1204]
[1728958241099,1.575993,65805.0,65804.0,0.1204]
[1728958241306,1.575993,65805.0,65804.0,0.30218822]
[1728958241307,1.5,65805.0,65804.0,0.30218822]
[1728958241493,0.167986,65812.0,65804.0,0.22624883]
[1728958241494,0.075986,65812.0,65804.0,0.22624883]
[1728958241801,0.075986,65812.0,65811.0,0.0004]
[1728958242003,1.575986,65812.0,65811.0,0.0004]
[1728958242206,1.65986878,65812.0,65811.0,0.0004]
[1728958243310,1.81095052,65812.0,65811.0,0.0004]
[1728958243897,1.66086878,65812.0,65811.0,0.0004]
[1728958244106,1.78086641,65812.0,65811.0,0.0004]
[1728958244305,1.78086641,65812.0,65811.0,0.0014]
[1728958244508,1.66086641,65812.0,65811.0,0.0014]
[1728958244711,1.77986641,65812.0,65811.0,0.0024]
[1728958245705,1.65986641,65812.0,65811.0,0.0024]
[1728958247110,1.76986641,65812.0,65811.0,0.0024]
[1728958247322,1.7232094,65812.0,65811.0,0.0024]
[1728958248117,1.5372234,65812.0,65811.0,0.1124]
[1728958249013,1.53722357,65812.0,65811.0,0.0024]
[1728958249716,1.65722357,65812.0,65811.0,0.0024]
[1728958250110,1.62,65812.0,65811.0,0.0024]
[1728958251726,0.075991,65807.0,65799.0,0.436799]
[1728958251924,0.12,65805.0,65800.0,0.075998]
[1728958252320,0.12,65805.0,65802.0,0.12]
[1728958252521,0.075991,65807.0,65802.0,0.12]
[1728958252824,0.075991,65807.0,65806.0,0.0004]
[1728958253222,0.077991,65807.0,65806.0,0.0004]
[1728958253917,0.075991,65807.0,65806.0,0.0004]
[1728958254127,0.077991,65807.0,65806.0,0.0014]
[1728958254919,0.077991,65807.0,65806.0,0.0024]
[1728958257228,0.16187587,65807.0,65806.0,0.0024]
[1728958258626,0.16187619,65807.0,65806.0,0.0024]
[1728958259824,0.21639725,65807.0,65806.0,0.0024]
[1728958260023,0.16187619,65807.0,65806.0,0.0024]
[1728958260825,0.08588519,65807.0,65806.0,0.1124]
[1728958261727,0.16815692,65807.0,65806.0,0.1124]
[1728958262122,0.08588519,65807.0,65806.0,0.1124]
[1728958262316,0.08588519,65807.0,65806.0,0.0024]
[1728958262523,0.25204211,65807.0,65806.0,0.0024]
[1728958262726,0.08588519,65807.0,65806.0,0.0024]
[1728958263236,0.08588519,65807.0,65805.0,0.389492]
[1728958263237,0.45588,65806.0,65791.0,0.0035]
[1728958263433,0.556803,65796.0,65788.0,0.0004]
[1728958263621,0.69522204,65796.0,65788.0,0.1204]
[1728958263823,2.19522204,65796.0,65788.0,0.1204]
[1728958264323,2.19522204,65796.0,65795.0,0.0014]
[1728958264526,2.19522204,65796.0,65795.0,0.0024]
[1728958265119,2.056803,65796.0,65795.0,0.0024]
[1728958265625,2.056803,65796.0,65788.0,0.0004]
[1728958265626,0.076011,65789.0,65788.0,0.0004]
[1728958265829,0.616811,65789.0,65788.0,0.0004]
[1728958267529,0.620811,65789.0,65788.0,0.0014]
[1728958268039,0.440811,65789.0,65788.0,0.0014]
[1728958268535,0.440811,65789.0,65788.0,0.0024]
[1728958283738,0.3648,65789.0,65788.0,0.0024]
[1728958285932,0.3648,65789.0,65788.0,0.1224]
[1728958286133,0.3648,65789.0,65788.0,0.19832556]
[1728958286335,0.3648,65789.0,65788.0,0.1224]
[1728958286942,0.3648,65789.0,65788.0,0.0024]
[1728958288339,0.3648,65789.0,65788.0,0.07832556]
[1728958288652,0.3648,65789.0,65788.0,0.0024]
[1728958289342,0.3648,65789.0,65788.0,0.07832556]
[1728958289543,0.4848,65789.0,65788.0,0.0024]
[1728958289744,0.560811,65789.0,65788.0,0.0024]
[1728958291847,0.620811,65789.0,65788.0,0.0024]
[1728958293452,0.6423036,65789.0,65788.0,0.11828038]
[1728958295250,0.67954101,65789.0,65788.0,0.0024]
[1728958295755,0.67954102,65789.0,65788.0,0.0024]
[1728958297347,0.47804842,65789.0,65788.0,0.0024]
[1728958299945,0.24183742,65789.0,65788.0,0.0024]
[1728958300153,0.2046,65789.0,65788.0,0.0024]
[1728958302051,0.004,65789.0,65788.0,0.0024]
[1728958302255,0.004,65789.0,65788.0,0.11827698]
[1728958315153,0.004,65789.0,65788.0,0.11827724]
[1728958317362,0.004,65789.0,65788.0,0.0024]
[1728958317561,0.08790963,65789.0,65788.0,0.0024]
[1728958320060,0.08790956,65789.0,65788.0,0.0024]
[1728958324470,0.004,65789.0,65788.0,0.11827713]
[1728958332377,0.04123657,65789.0,65788.0,0.002]
[1728958333370,0.04123668,65789.0,65788.0,0.002]
[1728958339386,0.04123668,65789.0,65788.0,0.11787736]
[1728958339387,0.004,65789.0,65788.0,0.11787736]
[1728958347476,0.004,65789.0,65788.0,0.002]
[1728958347684,0.08791326,65789.0,65788.0,0.002]
[1728958349490,0.44871326,65789.0,65788.0,0.002]
[1728958349698,0.50325291,65789.0,65788.0,0.002]
[1728958350687,0.14245291,65789.0,65788.0,0.002]
[1728958350894,0.08791326,65789.0,65788.0,0.002]
[1728958351094,0.44871326,65789.0,65788.0,0.002]
[1728958351297,0.50325291,65789.0,65788.0,0.002]
[1728958352596,0.48829518,65789.0,65788.0,0.002]
[1728958352802,0.525533,65789.0,65788.0,0.002]
[1728958354503,0.38708044,65789.0,65788.0,0.11788167]
[1728958355096,0.3648,65789.0,65788.0,0.11788167]
[1728958355599,0.004,65789.0,65788.0,0.11788167]
[1728958355800,0.075998,65801.0,65794.0,0.076005]
[1728958356099,0.075998,65801.0,65788.0,1.67572195]
[1728958356100,0.075998,65801.0,65797.0,0.09165309]
[1728958356299,0.09829316,65806.0,65800.0,0.1204]
[1728958356604,0.075993,65806.0,65805.0,0.0004]
[1728958357399,0.195993,65806.0,65805.0,0.0004]
[1728958358206,0.195993,65806.0,65805.0,0.0014]
[1728958359106,0.21834105,65806.0,65805.0,0.0024]
[1728958360401,0.21834105,65806.0,65805.0,0.06310109]
[1728958361102,0.09834105,65806.0,65805.0,0.06310109]
[1728958361498,0.02234805,65806.0,65805.0,0.06310109]
[1728958361804,0.4808,65809.0,65805.0,0.0024]
[1728958362000,0.4808,65809.0,65808.0,0.0004]
[1728958362397,0.58198668,65809.0,65808.0,0.0004]
[1728958362604,0.61921425,65809.0,65808.0,0.0004]
[1728958362905,0.61921425,65809.0,65808.0,0.1204]
[1728958362906,0.16069876,65809.0,65808.0,0.1204]
[1728958363097,0.10617431,65809.0,65808.0,0.1204]
[1728958363706,0.10617431,65809.0,65808.0,0.1104]
[1728958364009,0.16618536,65809.0,65808.0,0.1104]
[1728958364306,0.0838898,65809.0,65808.0,0.2139]
[1728958364494,0.0838898,65809.0,65808.0,0.5747]
[1728958364694,0.0838898,65809.0,65808.0,0.5757]
[1728958364892,0.0838898,65809.0,65808.0,0.65169]
[1728958365506,0.16609439,65809.0,65808.0,0.65169]
[1728958365807,0.24998177,65809.0,65808.0,0.65169]
[1728958366002,0.0838898,65809.0,65808.0,0.65169]
[1728958366505,0.0838898,65809.0,65808.0,0.65069]
[1728958366710,0.22060717,65812.0,65808.0,0.5757]
[1728958366897,0.22060717,65812.0,65811.0,0.186386]
[1728958366898,0.16609197,65812.0,65811.0,0.186386]
[1728958367104,0.08387502,65812.0,65811.0,0.186386]
[1728958367996,0.08387502,65812.0,65811.0,0.296386]
[1728958368195,0.16609197,65816.0,65815.0,0.075981]
[1728958368401,0.15080566,65818.0,65815.0,0.1104]
[1728958368595,0.0035,65826.0,65817.0,0.547179]
[1728958368596,0.15080566,65819.0,65817.0,0.547179]
[1728958368804,0.16609197,65825.0,65824.0,0.075971]
[1728958369004,0.0035,65834.0,65826.0,0.075969]
[1728958369210,0.0035,65834.0,65833.0,0.0004]
[1728958369400,1.59911304,65835.0,65833.0,0.0004]
[1728958369600,1.59911304,65835.0,65834.0,0.0004]
[1728958369601,1.59831304,65835.0,65834.0,0.0004]
[1728958370000,1.575959,65835.0,65834.0,0.0004]
[1728958370204,0.3608,65837.0,65834.0,0.0004]
[1728958370397,0.38296564,65837.0,65836.0,0.1104]
[1728958371310,0.3608,65837.0,65836.0,0.1104]
[1728958371515,0.2087,65839.0,65836.0,0.1104]
[1728958371809,0.2087,65839.0,65838.0,0.0004]
[1728958372208,0.2307673,65839.0,65838.0,0.0004]
[1728958372399,1.50092,65840.0,65838.0,0.0004]
[1728958372603,1.5,65840.0,65839.0,0.1104]
[1728958373415,1.61,65840.0,65839.0,0.0004]
[1728958373998,1.5,65840.0,65839.0,0.0014]
[1728958374203,1.61,65840.0,65839.0,0.0014]
[1728958374418,1.5,65840.0,65839.0,0.0014]
[1728958375016,1.5,65840.0,65839.0,0.0024]
[1728958378914,1.8608,65840.0,65839.0,0.0024]
[1728958380818,2.0763,65840.0,65839.0,0.0024]
[1728958381015,3.02194,65840.0,65839.0,0.0024]
[1728958382118,3.13194,65840.0,65839.0,0.0024]
[1728958383111,3.24194,65840.0,65839.0,0.0024]
[1728958384619,0.075964,65831.0,65827.0,0.0701483]
[1728958384821,0.08385789,65830.0,65829.0,0.11]
[1728958385213,0.13836211,65830.0,65829.0,0.11]
[1728958385419,0.08385789,65830.0,65829.0,0.11]
[1728958385925,0.08485789,65830.0,65829.0,0.111]
[1728958387219,0.08485789,65830.0,65829.0,0.221]
[1728958387423,0.08485789,65830.0,65829.0,0.2163]
[1728958387726,0.139357,65830.0,65829.0,0.2163]
[1728958387916,0.08485789,65830.0,65829.0,0.2163]
[1728958389721,0.08384679,65830.0,65829.0,0.2153]
[1728958389917,0.08584679,65830.0,65829.0,0.2163]
[1728958391238,0.08584525,65830.0,65829.0,0.2163]
[1728958392531,0.002,65830.0,65829.0,0.2163]
[1728958399635,0.08584611,65830.0,65829.0,0.2163]
[1728958401133,0.08584611,65830.0,65829.0,0.5771]
[1728958404435,0.08484611,65830.0,65829.0,0.5771]
[1728958404821,0.08484611,65830.0,65829.0,0.5761]
[1728958405127,0.08484611,65830.0,65829.0,0.5771]
[1728958407531,0.001,65830.0,65829.0,0.5771]
[1728958413432,0.001,65830.0,65829.0,0.4728]
[1728958419852,0.011,65830.0,65829.0,0.4728]
[1728958422839,0.14934581,65830.0,65829.0,0.4728]
[1728958423241,0.14934581,65830.0,65829.0,0.30137377]
[1728958423540,0.14934581,65830.0,65829.0,0.41137377]
[1728958424436,0.14934581,65830.0,65825.0,0.47236]
[1728958424437,0.47293665,65830.0,65825.0,0.00156]
[1728958424741,0.47293665,65830.0,65824.0,0.0004]
[1728958424742,0.19692109,65827.0,65824.0,0.0004]
[1728958424945,1.60113665,65826.0,65824.0,0.0004]
[1728958425139,0.16349247,65825.0,65824.0,0.0004]
[1728958426640,0.16349247,65825.0,65824.0,0.0014]
[1728958427236,0.16649247,65825.0,65824.0,0.0024]
[1728958427446,0.10413665,65825.0,65824.0,0.0024]
[1728958429740,0.003,65825.0,65824.0,0.0024]
[1728958433549,0.4738,65825.0,65824.0,0.0024]
[1728958433750,0.3638,65825.0,65824.0,0.0024]
[1728958435455,0.003,65825.0,65824.0,0.0024]
[1728958437749,0.1041555,65825.0,65822.0,0.05629721]
[1728958438055,0.1011555,65824.0,65822.0,0.05629721]
[1728958438247,0.1011555,65823.0,65822.0,0.05629721]
[1728958438448,0.10115468,65823.0,65822.0,0.05629721]
[1728958439551,0.10115468,65823.0,65819.0,0.075977]
[1728958439749,0.1011556,65822.0,65819.0,0.20838705]
[1728958439944,0.002,65823.0,65819.0,0.20838705]
[1728958439945,0.1011556,65821.0,65819.0,0.20838705]
[1728958440249,0.1011556,65820.0,65819.0,0.20838705]
[1728958440448,0.04664795,65820.0,65819.0,0.20838705]
[1728958441643,0.15664795,65820.0,65815.0,0.0004]
[1728958441845,0.04664795,65819.0,65815.0,0.0004]
[1728958442044,0.04664795,65819.0,65816.0,0.11]
[1728958443256,0.04964795,65819.0,65816.0,0.11]
[1728958444861,0.15827,65826.0,65817.0,0.0871]
[1728958445156,0.15827,65826.0,65824.0,0.0004]
[1728958446150,0.3638,65825.0,65824.0,0.0004]
[1728958446751,0.3638,65825.0,65824.0,0.0014]
[1728958447950,0.3638,65825.0,65824.0,0.0024]
[1728958452961,0.4649605,65825.0,65824.0,0.0024]
[1728958455754,0.4649605,65825.0,65824.0,0.1124]
[1728958456459,0.46495721,65825.0,65824.0,0.1124]
[1728958457563,0.46495721,65825.0,65824.0,0.11]
[1728958459462,0.66172136,65825.0,65824.0,0.11]
[1728958459870,0.56056415,65825.0,65824.0,0.11]
[1728958460262,0.003,65825.0,65824.0,0.11]
[1728958463069,0.003,65825.0,65824.0,0.4708]
[1728958463370,0.003,65825.0,65824.0,0.11]
[1728958467875,0.075975,65821.0,65818.0,0.44974]
[1728958468068,0.075975,65821.0,65818.0,0.4481]
[1728958468676,0.075975,65821.0,65818.0,0.4702606]
[1728958468877,0.075975,65821.0,65818.0,0.5802606]
[1728958469075,0.079975,65821.0,65818.0,0.5802606]
[1728958469271,0.080975,65821.0,65818.0,0.5802606]
[1728958470178,0.005,65821.0,65820.0,0.11]
[1728958475589,0.05164815,65821.0,65820.0,0.11]
[1728958482899,0.005,65821.0,65820.0,0.11]
[1728958484600,0.004,65821.0,65820.0,0.11]
[1728958485303,0.3708,65830.0,65820.0,0.11]
[1728958485304,0.01,65830.0,65820.0,0.11]
[1728958485503,0.01,65830.0,65818.0,0.53240577]
[1728958485504,0.01,65830.0,65829.0,0.1104]
[1728958487709,0.011,65830.0,65829.0,0.1114]
[1728958488498,0.011,65830.0,65829.0,0.1124]
[1728958490006,0.11213969,65830.0,65829.0,0.09969392]
[1728958490205,0.11213969,65830.0,65829.0,0.12120151]
[1728958492403,0.05764056,65830.0,65829.0,0.20290151]
[1728958496910,0.011,65830.0,65829.0,0.20290151]
[1728958512147,0.11213841,65830.0,65829.0,0.20290151]
[1728958513028,0.30913927,65830.0,65829.0,0.20290151]
[1728958513629,0.05449844,65835.0,65829.0,1.36862151]
[1728958513824,0.3643,65839.0,65835.0,0.11]
[1728958513825,0.05449706,65838.0,65835.0,0.11]
[1728958514121,0.05449706,65838.0,65837.0,0.2204]
[1728958515821,0.3643,65846.0,65837.0,0.2204]
[1728958516027,0.3608,65846.0,65845.0,0.1104]
[1728958516728,0.41529055,65846.0,65845.0,0.1104]
[1728958517130,0.41529055,65846.0,65845.0,0.08052471]
[1728958517332,0.05449055,65846.0,65845.0,0.08052471]
[1728958517525,0.05449055,65847.0,65845.0,0.08152471]
[1728958517737,0.05449055,65847.0,65846.0,0.0004]
[1728958518736,0.04663115,65847.0,65846.0,0.0004]
[1728958519132,0.1011217,65847.0,65846.0,0.0004]
[1728958519335,0.1011217,65847.0,65846.0,0.0014]
[1728958520134,0.1624,65848.0,65846.0,0.0014]
[1728958520334,0.1624,65848.0,65847.0,0.0004]
[1728958521141,0.0823,65848.0,65847.0,0.0004]
[1728958521351,0.0823,65848.0,65847.0,0.06107446]
[1728958522750,0.0823,65848.0,65847.0,0.06207446]
[1728958523654,0.0823,65848.0,65847.0,0.06307446]
[1728958524440,0.0823,65848.0,65847.0,0.0024]
[1728958524953,0.0823,65848.0,65847.0,0.06307446]
[1728958525453,0.0823,65848.0,65847.0,0.0024]
[1728958526054,0.0823,65848.0,65847.0,0.06307446]
[1728958527153,0.12892886,65848.0,65847.0,0.0024]
[1728958528364,0.04662822,65848.0,65847.0,0.0024]
[1728958528546,0.04662822,65848.0,65847.0,0.1124]
[1728958528853,0.04662822,65848.0,65847.0,1.168]
[1728958529255,0.0035,65855.0,65853.0,0.075937]
[1728958529456,0.0815,65858.0,65854.0,0.11]
[1728958529658,0.0815,65858.0,65857.0,0.1104]
[1728958531052,0.078,65864.0,65857.0,0.1104]
[1728958531258,0.078,65864.0,65861.0,0.11]
[1728958531557,0.078,65864.0,65863.0,0.0004]
[1728958532356,0.16630323,65864.0,65863.0,0.0004]
[1728958532560,0.3608,65866.0,65863.0,0.0004]
[1728958532857,0.3608,65866.0,65865.0,0.1104]
[1728958533761,0.41527297,65866.0,65865.0,0.1104]
[1728958534252,0.46189122,65866.0,65865.0,0.1104]
[1728958534559,0.62806819,65866.0,65865.0,0.1104]
[1728958534758,0.62806819,65866.0,65865.0,0.1114]
[1728958535163,0.3608,65866.0,65865.0,0.1114]
[1728958537163,0.3608,65866.0,65865.0,0.1124]
[1728958540360,0.0766,65871.0,65866.0,0.075922]
[1728958540566,0.0805,65872.0,65870.0,0.1104]
[1728958540770,0.0805,65872.0,65871.0,0.0004]
[1728958542193,0.12711371,65872.0,65871.0,0.00036]
[1728958542365,0.29158147,65872.0,65871.0,0.00036]
[1728958543565,0.36698147,65872.0,65871.0,0.00036]
[1728958543764,0.36698147,65872.0,65871.0,0.00236]
[1728958544367,0.56336268,65872.0,65871.0,0.00236]
[1728958544766,0.36698147,65872.0,65871.0,0.00236]
[1728958545266,0.25698147,65872.0,65871.0,0.00236]
[1728958545567,0.37799143,65872.0,65871.0,0.00236]
[1728958545965,0.18158147,65872.0,65871.0,0.00236]
[1728958550174,0.0805,65872.0,65871.0,0.00236]
[1728958552458,0.4413,65872.0,65871.0,0.00236]
[1728958552661,0.075923,65866.0,65865.0,0.0004]
[1728958552866,0.546723,65866.0,65865.0,0.0004]
[1728958553978,0.546723,65866.0,65865.0,0.0024]
[1728958555177,0.656723,65866.0,65865.0,0.0024]
[1728958555565,0.45548,65865.0,65857.0,0.0004]
[1728958555772,0.185932,65858.0,65857.0,0.0004]
[1728958556163,1.764032,65858.0,65857.0,0.0004]
[1728958556880,0.075935,65855.0,65854.0,0.0004]
[1728958557071,0.295935,65855.0,65854.0,0.0004]
[1728958557474,0.295935,65855.0,65847.0,0.0004]
[1728958557678,0.546743,65848.0,65847.0,0.0004]
[1728958558263,1.602343,65848.0,65846.0,0.0004]
[1728958558567,1.602343,65848.0,65837.0,0.0004]
[1728958558568,0.075946,65846.0,65837.0,0.0004]
[1728958558767,0.6149,65847.0,65837.0,0.0004]
[1728958558768,0.075954,65839.0,65837.0,0.0004]
[1728958560174,1.50076,65845.0,65837.0,0.0004]
[1728958560175,0.00076,65845.0,65838.0,0.18]
[1728958560383,0.004,65839.0,65837.0,0.077356]
[1728958560673,0.007,65839.0,65837.0,0.078356]
[1728958561672,0.007,65839.0,65838.0,0.2592]
[1728958561872,0.003,65839.0,65838.0,0.2602]
[1728958562669,0.007,65839.0,65838.0,0.3415]
[1728958563069,0.007,65839.0,65838.0,0.3425]
[1728958563070,0.006,65839.0,65838.0,0.3425]
[1728958563501,0.002,65839.0,65838.0,0.3425]
[1728958563675,0.006,65839.0,65838.0,0.3435]
[1728958565376,0.006,65839.0,65838.0,0.36504752]
[1728958567576,0.0035,65847.0,65846.0,0.075946]
[1728958567782,0.0035,65856.0,65848.0,0.075943]
[1728958567973,0.04662863,65855.0,65850.0,0.07594]
[1728958568171,0.3608,65861.0,65854.0,0.5408]
[1728958568476,0.3608,65861.0,65860.0,0.18]
[1728958568677,0.3608,65861.0,65860.0,0.1804]
[1728958570882,0.3608,65861.0,65860.0,0.1814]
[1728958571184,0.0035,65867.0,65860.0,0.1814]
[1728958571381,1.937521,65868.0,65866.0,0.1804]
[1728958571680,1.936721,65868.0,65867.0,0.0004]
[1728958573378,0.436721,65868.0,65867.0,0.0004]
[1728958573687,0.436721,65868.0,65867.0,0.0014]
[1728958574683,0.436721,65868.0,65867.0,0.0024]
[1728958580189,0.53781553,65868.0,65867.0,0.0024]
[1728958582697,0.53781553,65868.0,65866.0,0.0004]
[1728958582698,0.53781553,65868.0,65863.0,0.16448001]
[1728958582883,0.10109453,65867.0,65863.0,0.16448001]
[1728958583083,0.04661974,65866.0,65863.0,0.16448001]
[1728958583284,0.04661974,65865.0,65863.0,0.16448001]
[1728958583583,1.54661974,65864.0,65863.0,0.16448001]
[1728958583784,1.60109453,65864.0,65863.0,0.16448001]
[1728958584092,0.29747009,65864.0,65863.0,0.16548001]
[1728958584387,0.04661974,65864.0,65863.0,0.16548001]
[1728958584793,0.10109453,65864.0,65863.0,0.16548001]
[1728958585189,0.16342438,65864.0,65863.0,0.16548001]
[1728958585894,0.16342438,65864.0,65863.0,0.16648001]
[1728958586503,0.16542438,65864.0,65863.0,0.16648001]
[1728958586990,0.10309453,65864.0,65863.0,0.16648001]
[1728958587195,0.002,65864.0,65863.0,0.16648001]
[1728958589095,0.002,65864.0,65863.0,0.34648001]
[1728958589890,0.002,65864.0,65863.0,0.222]
[1728958590694,0.0035,65873.0,65865.0,0.075923]
[1728958590900,0.0975168,65876.0,65872.0,0.1104]
[1728958591096,0.0975168,65876.0,65874.0,0.0004]
[1728958591784,0.075912,65876.0,65874.0,0.1804]
[1728958592493,0.075912,65876.0,65874.0,0.1814]
[1728958592494,0.4442,65875.0,65874.0,0.1814]
[1728958594088,0.4442,65875.0,65874.0,0.1824]
[1728958597488,0.3618,65875.0,65874.0,0.1824]
[1728958600597,0.3618,65875.0,65874.0,0.3624]
[1728958600895,0.3618,65875.0,65874.0,0.1824]
[1728958602298,0.46187799,65875.0,65874.0,0.14524666]
[1728958602494,0.46287799,65875.0,65874.0,0.14724666]
[1728958606000,0.10207799,65875.0,65874.0,0.14724666]
[1728958608294,0.04761211,65875.0,65874.0,0.14724666]
[1728958608702,0.04760837,65875.0,65874.0,0.14724666]
[1728958610398,0.001,65875.0,65874.0,0.14724666]
[1728958611801,0.001,65875.0,65874.0,0.112]
[1728958617406,0.10206718,65875.0,65874.0,0.11]
[1728958617607,0.16438017,65875.0,65874.0,0.20900001]
[1728958617810,0.10206718,65875.0,65874.0,0.20900001]
[1728958618508,0.10206718,65875.0,65874.0,0.11]
[1728958618706,0.16438017,65875.0,65874.0,0.11]
[1728958618906,0.10206718,65875.0,65874.0,0.11]
[1728958619210,0.10406718,65875.0,65874.0,0.112]
[1728958619912,0.16638017,65875.0,65874.0,0.112]
[1728958620102,0.10406718,65875.0,65874.0,0.112]
[1728958620812,0.10406718,65875.0,65874.0,0.002]
[1728958621003,0.10406718,65875.0,65874.0,0.112]
[1728958623503,0.10406718,65875.0,65874.0,0.11]
[1728958625420,0.003,65875.0,65874.0,0.11]
[1728958630914,0.003,65875.0,65874.0,0.15547817]
[1728958631126,0.003,65875.0,65874.0,0.22]
[1728958631427,0.0035,65883.0,65881.0,0.075905]
[1728958631719,0.0779,65887.0,65882.0,0.296303]
[1728958631922,0.0779,65887.0,65886.0,0.1104]
[1728958632422,0.29807164,65887.0,65886.0,0.1104]
[1728958632624,0.24361882,65887.0,65886.0,0.1104]
[1728958632823,0.10405375,65887.0,65886.0,0.1104]
[1728958633120,0.04960093,65887.0,65886.0,0.1104]
[1728958633313,0.04660093,65887.0,65886.0,0.1104]
[1728958633516,0.04960093,65887.0,65886.0,0.1114]
[1728958634723,0.05060093,65887.0,65886.0,0.1124]
[1728958635629,0.04760093,65887.0,65886.0,0.1124]
[1728958636640,0.04860093,65887.0,65886.0,0.1124]
[1728958637439,0.04860093,65887.0,65886.0,0.13440801]
[1728958639841,0.40990485,65887.0,65883.0,0.11]
[1728958640146,0.10105375,65886.0,65883.0,0.11]
[1728958640441,0.077899,65887.0,65883.0,0.11]
[1728958640644,0.0743,65885.0,65883.0,0.11]
[1728958640839,0.0743,65885.0,65884.0,0.11]
[1728958642435,0.0763,65885.0,65884.0,0.111]
[1728958642836,0.0793,65885.0,65884.0,0.111]
[1728958643534,0.0763,65885.0,65884.0,0.111]
[1728958643734,0.002,65885.0,65884.0,0.111]
[1728958643935,0.006,65885.0,65884.0,0.112]
[1728958645843,0.006,65885.0,65884.0,0.1887]
[1728958648040,0.006,65885.0,65884.0,0.0787]
[1728958655552,0.10704615,65885.0,65883.0,0.29117858]
[1728958655851,0.10104615,65884.0,65883.0,0.29117858]
[1728958656041,0.10104618,65884.0,65883.0,0.29117858]
[1728958656656,0.10104618,65884.0,65883.0,0.29217858]
[1728958657257,0.10104618,65884.0,65883.0,0.65297858]
[1728958657857,0.10104618,65884.0,65883.0,0.29217858]
[1728958658056,0.10104618,65884.0,65883.0,0.65297858]
[1728958658357,0.10404618,65884.0,65883.0,0.65397858]
[1728958658947,0.10404618,65884.0,65883.0,0.65297858]
[1728958659146,0.10904618,65884.0,65883.0,0.65397858]
[1728958660863,0.1090449,65884.0,65883.0,0.65397858]
[1728958662553,0.008,65884.0,65883.0,0.71465304]
[1728958662760,0.0035,65893.0,65883.0,1.88001304]